[Event "Titled Tuesday Blitz November 22 Late 2022"]
[White "Oparin, Grigoriy"]
[Black "Bobkov, Vadim"]
[WhiteFideId "24125890"]
[BlackFideId "34110876"]
[WhiteElo "2639"]
[BlackElo "2172"]
[Result "1/2-1/2"]
[Round "09"]
[TimeControl "180+1"]
[Date "2022.11.22"]
[WhiteClock "0:00:06"]
[BlackClock "0:00:04"]

1. Nf3 {[%clk 0:03:00]}  d5 {[%clk 0:03:00]} 2. g3 {[%clk 0:03:00]}  c5 {[%clk 0:02:59]} 3. Bg2 {[%clk 0:03:00]}  Nc6 {[%clk 0:03:00]} 4. d4 {[%clk 0:02:58]}  Nf6 {[%clk 0:03:00]} 5. O-O {[%clk 0:02:56]}  Bg4 {[%clk 0:03:01]} 6. dxc5 {[%clk 0:02:52]}  e6 {[%clk 0:03:00]} 7. c3 {[%clk 0:02:48]}  Bxc5 {[%clk 0:03:00]} 8. b4 {[%clk 0:02:48]}  Bb6 {[%clk 0:03:00]} 9. Bb2 {[%clk 0:02:48]}  Rc8 {[%clk 0:02:54]} 10. Nbd2 {[%clk 0:02:48]}  O-O {[%clk 0:02:51]} 11. a3 {[%clk 0:02:47]}  Ne4 {[%clk 0:02:40]} 12. c4 {[%clk 0:02:18]}  Bxf3 {[%clk 0:02:24]} 13. Nxf3 {[%clk 0:01:52]}  dxc4 {[%clk 0:02:24]} 14. Qc2 {[%clk 0:01:52]}  c3 {[%clk 0:02:24]} 15. Bxc3 {[%clk 0:01:44]}  Nxc3 {[%clk 0:00:54]} 16. Qxc3 {[%clk 0:01:45]}  Nd4 {[%clk 0:00:55]} 17. Qd3 {[%clk 0:01:38]}  Rc3 {[%clk 0:00:55]} 18. Qe4 {[%clk 0:01:29]}  f5 {[%clk 0:00:30]} 19. Qxb7 {[%clk 0:01:27]}  Nxe2+ {[%clk 0:00:16]} 20. Kh1 {[%clk 0:01:27]}  Qf6 {[%clk 0:00:13]} 21. Rae1 {[%clk 0:01:22]}  Nd4 {[%clk 0:00:13]} 22. Ne5 {[%clk 0:01:09]}  Rd8 {[%clk 0:00:08]} 23. Nd7 {[%clk 0:00:58]}  Qe7 {[%clk 0:00:06]} 24. Nxb6 {[%clk 0:00:53]}  Qxb7 {[%clk 0:00:07]} 25. Bxb7 {[%clk 0:00:53]}  axb6 {[%clk 0:00:08]} 26. a4 {[%clk 0:00:50]}  Kf7 {[%clk 0:00:08]} 27. a5 {[%clk 0:00:50]}  bxa5 {[%clk 0:00:09]} 28. bxa5 {[%clk 0:00:51]}  Nb3 {[%clk 0:00:06]} 29. a6 {[%clk 0:00:44]}  Nc5 {[%clk 0:00:06]} 30. Rc1 {[%clk 0:00:42]}  Rxc1 {[%clk 0:00:06]} 31. Rxc1 {[%clk 0:00:43]}  Nxb7 {[%clk 0:00:07]} 32. axb7 {[%clk 0:00:44]}  Rb8 {[%clk 0:00:08]} 33. Rc7+ {[%clk 0:00:44]}  Kf6 {[%clk 0:00:08]} 34. h4 {[%clk 0:00:40]}  h6 {[%clk 0:00:08]} 35. h5 {[%clk 0:00:40]}  g6 {[%clk 0:00:03]} 36. Kg2 {[%clk 0:00:40]}  gxh5 {[%clk 0:00:04]} 37. Kh3 {[%clk 0:00:40]}  Kg5 {[%clk 0:00:03]} 38. f4+ {[%clk 0:00:40]}  Kf6 {[%clk 0:00:03]} 39. Kh4 {[%clk 0:00:40]}  e5 {[%clk 0:00:04]} 40. Kxh5 {[%clk 0:00:38]}  e4 {[%clk 0:00:04]} 41. Rd7 {[%clk 0:00:32]}  Ke6 {[%clk 0:00:03]} 42. Rc7 {[%clk 0:00:31]}  Kd6 {[%clk 0:00:03]} 43. Rf7 {[%clk 0:00:30]}  Ke6 {[%clk 0:00:03]} 44. Rh7 {[%clk 0:00:27]}  e3 {[%clk 0:00:04]} 45. Rxh6+ {[%clk 0:00:23]}  Kd5 {[%clk 0:00:04]} 46. Rh7 {[%clk 0:00:23]}  Ke4 {[%clk 0:00:04]} 47. Re7+ {[%clk 0:00:20]}  Kf3 {[%clk 0:00:04]} 48. Kg5 {[%clk 0:00:20]}  e2 {[%clk 0:00:05]} 49. Kxf5 {[%clk 0:00:20]}  Rxb7 {[%clk 0:00:05]} 50. Rxb7 {[%clk 0:00:06]}  e1=Q {[%clk 0:00:05]} 51. Rg7 {[%clk 0:00:07]}  Qe4+ {[%clk 0:00:03]} 52. Kf6 {[%clk 0:00:06]}  Qd4+ {[%clk 0:00:04]} 53. Kf7 {[%clk 0:00:06]}  Ke4 {[%clk 0:00:04]} 54. Rg5 {[%clk 0:00:06]}  Qd7+ {[%clk 0:00:04]} 55. Kg6 {[%clk 0:00:07]}  Kf3 {[%clk 0:00:04]} 56. Kh6 {[%clk 0:00:06]}  Qe6+ {[%clk 0:00:04]} 57. Kg7 {[%clk 0:00:06]}  Qe7+ {[%clk 0:00:04]} 58. Kg6 {[%clk 0:00:07]}  Qe6+ {[%clk 0:00:04]} 59. Kh7 {[%clk 0:00:08]}  Qf7+ {[%clk 0:00:04]} 60. Kh6 {[%clk 0:00:08]}  Qf6+ {[%clk 0:00:05]} 61. Kh7 {[%clk 0:00:09]}  Ke4 {[%clk 0:00:04]} 62. Re5+ {[%clk 0:00:06]}  Kf3 {[%clk 0:00:05]} 63. Rg5 {[%clk 0:00:07]}  Kg2 {[%clk 0:00:05]} 64. Kg8 {[%clk 0:00:04]}  Kh3 {[%clk 0:00:05]} 65. Kh7 {[%clk 0:00:04]}  Kh2 {[%clk 0:00:05]} 66. Kg8 {[%clk 0:00:05]}  Kg2 {[%clk 0:00:05]} 67. Kh7 {[%clk 0:00:05]}  Qf7+ {[%clk 0:00:05]} 68. Kh6 {[%clk 0:00:06]}  Kf3 {[%clk 0:00:05]} 69. Rg6 {[%clk 0:00:06]}  Qf8+ {[%clk 0:00:05]} 70. Kh7 {[%clk 0:00:06]}  Qf5 {[%clk 0:00:05]} 71. Kh6 {[%clk 0:00:06]}  Qf7 {[%clk 0:00:05]} 72. Rg5 {[%clk 0:00:06]}  Qe7 {[%clk 0:00:03]} 73. Kg6 {[%clk 0:00:05]}  Qe6+ {[%clk 0:00:04]} 74. Kh7 {[%clk 0:00:05]}  Qf7+ {[%clk 0:00:04]} 75. Kh6 {[%clk 0:00:06]} 1/2-1/2


[Site "https://www.chess.com"]

[Event "Titled Tuesday Blitz November 22 Late 2022"]
[White "Pakleza, Zbigniew"]
[Black "Nasuta, Grzegorz"]
[WhiteFideId "1119290"]
[BlackFideId "1141686"]
[WhiteElo "2411"]
[BlackElo "2440"]
[Result "0-1"]
[Round "09"]
[TimeControl "180+1"]
[Date "2022.11.22"]
[WhiteClock "0:00:01"]
[BlackClock "0:00:05"]

1. d4 {[%clk 0:03:00]}  d5 {[%clk 0:02:58]} 2. Bf4 {[%clk 0:03:00]}  c5 {[%clk 0:02:56]} 3. e3 {[%clk 0:03:00]}  Nc6 {[%clk 0:02:56]} 4. c3 {[%clk 0:03:01]}  Bf5 {[%clk 0:02:53]} 5. Nd2 {[%clk 0:02:59]}  e6 {[%clk 0:02:43]} 6. Ngf3 {[%clk 0:02:53]}  Qb6 {[%clk 0:02:43]} 7. Nh4 {[%clk 0:02:40]}  Be4 {[%clk 0:02:13]} 8. Qb3 {[%clk 0:02:27]}  Be7 {[%clk 0:02:03]} 9. Nhf3 {[%clk 0:02:23]}  Bxf3 {[%clk 0:01:53]} 10. Nxf3 {[%clk 0:02:21]}  c4 {[%clk 0:01:52]} 11. Qc2 {[%clk 0:02:21]}  f5 {[%clk 0:01:52]} 12. b3 {[%clk 0:02:10]}  cxb3 {[%clk 0:01:51]} 13. Qxb3 {[%clk 0:02:10]}  Nf6 {[%clk 0:01:33]} 14. Qxb6 {[%clk 0:01:52]}  axb6 {[%clk 0:01:34]} 15. Bb5 {[%clk 0:01:52]}  Ne4 {[%clk 0:01:29]} 16. c4 {[%clk 0:01:46]}  Bb4+ {[%clk 0:01:14]} 17. Kf1 {[%clk 0:01:44]}  Bc3 {[%clk 0:01:11]} 18. cxd5 {[%clk 0:01:17]}  exd5 {[%clk 0:01:02]} 19. Rc1 {[%clk 0:00:52]}  Rxa2 {[%clk 0:01:02]} 20. Bg3 {[%clk 0:00:47]}  O-O {[%clk 0:00:56]} 21. Bd3 {[%clk 0:00:34]}  Bb4 {[%clk 0:00:25]} 22. Bc2 {[%clk 0:00:18]}  Ba3 {[%clk 0:00:24]} 23. Bb3 {[%clk 0:00:19]}  Rxf2+ {[%clk 0:00:18]} 24. Bxf2 {[%clk 0:00:18]}  Bxc1 {[%clk 0:00:18]} 25. Bxd5+ {[%clk 0:00:19]}  Kh8 {[%clk 0:00:18]} 26. Ke2 {[%clk 0:00:10]}  Nc3+ {[%clk 0:00:18]} 27. Kd3 {[%clk 0:00:10]}  Nxd5 {[%clk 0:00:15]} 28. Rxc1 {[%clk 0:00:10]}  Ra8 {[%clk 0:00:15]} 29. Bg1 {[%clk 0:00:02]}  Kg8 {[%clk 0:00:14]} 30. h3 {[%clk 0:00:02]}  Kf7 {[%clk 0:00:12]} 31. Ke2 {[%clk 0:00:01]}  Ra2+ {[%clk 0:00:11]} 32. Kf1 {[%clk 0:00:01]}  Ke6 {[%clk 0:00:09]} 33. Re1 {[%clk 0:00:02]}  Nc3 {[%clk 0:00:06]} 34. Ng5+ {[%clk 0:00:01]}  Kd5 {[%clk 0:00:05]} 35. Nxh7 {[%clk 0:00:02]}  b5 {[%clk 0:00:05]} 36. Bh2 {[%clk 0:00:02]}  b4 {[%clk 0:00:05]} 37. Ng5 {[%clk 0:00:01]}  b3 {[%clk 0:00:05]} 0-1


[Site "https://www.chess.com"]

[Event "Titled Tuesday Blitz November 22 Late 2022"]
[White "Papasimakopoulos, Alexandros"]
[Black "Melkumyan, Hrant"]
[WhiteFideId "4244125"]
[BlackFideId "13302485"]
[WhiteElo "2365"]
[BlackElo "2604"]
[Result "0-1"]
[Round "09"]
[TimeControl "180+1"]
[Date "2022.11.22"]
[WhiteClock "0:00:46"]
[BlackClock "0:01:24"]

1. d4 {[%clk 0:02:53]}  Nf6 {[%clk 0:03:00]} 2. c4 {[%clk 0:02:53]}  g6 {[%clk 0:03:00]} 3. Nc3 {[%clk 0:02:53]}  Bg7 {[%clk 0:03:01]} 4. Bg5 {[%clk 0:02:51]}  O-O {[%clk 0:02:58]} 5. e3 {[%clk 0:02:49]}  c5 {[%clk 0:02:58]} 6. d5 {[%clk 0:02:48]}  e6 {[%clk 0:02:58]} 7. Nf3 {[%clk 0:02:45]}  exd5 {[%clk 0:02:58]} 8. cxd5 {[%clk 0:02:46]}  d6 {[%clk 0:02:58]} 9. Nd2 {[%clk 0:02:45]}  Na6 {[%clk 0:02:55]} 10. Be2 {[%clk 0:02:43]}  Nc7 {[%clk 0:02:54]} 11. e4 {[%clk 0:02:35]}  b5 {[%clk 0:02:51]} 12. Nxb5 {[%clk 0:02:14]}  Nxb5 {[%clk 0:02:51]} 13. Bxb5 {[%clk 0:02:15]}  Rb8 {[%clk 0:02:52]} 14. Bd3 {[%clk 0:02:11]}  h6 {[%clk 0:02:48]} 15. Bh4 {[%clk 0:02:05]}  Rxb2 {[%clk 0:02:46]} 16. O-O {[%clk 0:02:03]}  Re8 {[%clk 0:02:32]} 17. Nc4 {[%clk 0:02:02]}  Rb4 {[%clk 0:02:28]} 18. Qc2 {[%clk 0:01:54]}  Ba6 {[%clk 0:02:11]} 19. Rae1 {[%clk 0:01:42]}  Bxc4 {[%clk 0:02:01]} 20. Bxc4 {[%clk 0:01:41]}  g5 {[%clk 0:02:01]} 21. Bg3 {[%clk 0:01:37]}  Nh5 {[%clk 0:02:02]} 22. Rb1 {[%clk 0:01:30]}  Nxg3 {[%clk 0:01:52]} 23. hxg3 {[%clk 0:01:31]}  Bd4 {[%clk 0:01:48]} 24. a3 {[%clk 0:01:27]}  Rxb1 {[%clk 0:01:44]} 25. Rxb1 {[%clk 0:01:27]}  Qf6 {[%clk 0:01:45]} 26. Rf1 {[%clk 0:01:25]}  Kg7 {[%clk 0:01:42]} 27. Bb5 {[%clk 0:01:24]}  Re7 {[%clk 0:01:40]} 28. Bd3 {[%clk 0:01:23]}  Rb7 {[%clk 0:01:39]} 29. Qe2 {[%clk 0:01:02]}  Rb2 {[%clk 0:01:36]} 30. Qf3 {[%clk 0:01:03]}  Rb3 {[%clk 0:01:34]} 31. Rd1 {[%clk 0:00:52]}  Rxa3 {[%clk 0:01:33]} 32. Qe2 {[%clk 0:00:51]}  a5 {[%clk 0:01:28]} 33. Bb5 {[%clk 0:00:48]}  Rb3 {[%clk 0:01:27]} 34. Bd7 {[%clk 0:00:48]}  Rb2 {[%clk 0:01:24]} 35. Rd2 {[%clk 0:00:47]}  Qxf2+ {[%clk 0:01:24]} 36. Qxf2 {[%clk 0:00:46]}  Rxd2 {[%clk 0:01:24]} 0-1


[Site "https://www.chess.com"]

[Event "Titled Tuesday Blitz November 22 Late 2022"]
[White "Paravyan, David"]
[Black "Robson, Ray"]
[WhiteFideId "4194985"]
[BlackFideId "2023970"]
[WhiteElo "2546"]
[BlackElo "2668"]
[Result "1-0"]
[Round "09"]
[TimeControl "180+1"]
[Date "2022.11.22"]
[WhiteClock "0:00:49"]
[BlackClock "0:01:08"]

1. e4 {[%clk 0:03:00]}  c5 {[%clk 0:02:57]} 2. Nf3 {[%clk 0:03:01]}  d6 {[%clk 0:02:58]} 3. d4 {[%clk 0:03:01]}  cxd4 {[%clk 0:02:59]} 4. Nxd4 {[%clk 0:03:02]}  Nf6 {[%clk 0:02:59]} 5. Nc3 {[%clk 0:03:03]}  a6 {[%clk 0:03:00]} 6. Bg5 {[%clk 0:03:03]}  e6 {[%clk 0:02:54]} 7. a3 {[%clk 0:03:03]}  Nbd7 {[%clk 0:02:46]} 8. Bc4 {[%clk 0:03:02]}  h6 {[%clk 0:02:37]} 9. Be3 {[%clk 0:02:51]}  Nc5 {[%clk 0:02:28]} 10. Qf3 {[%clk 0:02:13]}  b5 {[%clk 0:02:16]} 11. Ba2 {[%clk 0:02:13]}  Bb7 {[%clk 0:02:14]} 12. O-O-O {[%clk 0:02:13]}  Rc8 {[%clk 0:02:01]} 13. Rhe1 {[%clk 0:02:11]}  Ncxe4 {[%clk 0:01:30]} 14. Nxe4 {[%clk 0:02:04]}  Bxe4 {[%clk 0:01:29]} 15. Qh3 {[%clk 0:01:50]}  Be7 {[%clk 0:01:08]} 16. Bg5 {[%clk 0:00:49]} 1-0


[Site "https://www.chess.com"]

[Event "Titled Tuesday Blitz November 22 Late 2022"]
[White "Petrovic, Aleksa"]
[Black "Sabuk, Piotr"]
[WhiteFideId "967629"]
[BlackFideId "1137565"]
[WhiteElo "2224"]
[BlackElo "2326"]
[Result "0-1"]
[Round "09"]
[TimeControl "180+1"]
[Date "2022.11.23"]
[WhiteClock "0:00:05"]
[BlackClock "0:00:21"]

1. d4 {[%clk 0:02:57]}  Nf6 {[%clk 0:02:59]} 2. c4 {[%clk 0:02:55]}  e6 {[%clk 0:02:59]} 3. Nf3 {[%clk 0:02:55]}  b6 {[%clk 0:02:56]} 4. g3 {[%clk 0:02:56]}  Ba6 {[%clk 0:02:54]} 5. Qa4 {[%clk 0:02:56]}  Bb7 {[%clk 0:02:53]} 6. Bg2 {[%clk 0:02:56]}  c5 {[%clk 0:02:53]} 7. dxc5 {[%clk 0:02:57]}  bxc5 {[%clk 0:02:53]} 8. O-O {[%clk 0:02:57]}  Be7 {[%clk 0:02:53]} 9. Nc3 {[%clk 0:02:58]}  O-O {[%clk 0:02:53]} 10. Rd1 {[%clk 0:02:59]}  d6 {[%clk 0:02:49]} 11. Bf4 {[%clk 0:02:59]}  Ne8 {[%clk 0:02:46]} 12. e4 {[%clk 0:02:36]}  Qb6 {[%clk 0:02:25]} 13. e5 {[%clk 0:02:25]}  dxe5 {[%clk 0:02:25]} 14. Nxe5 {[%clk 0:02:17]}  Bxg2 {[%clk 0:02:22]} 15. Kxg2 {[%clk 0:02:18]}  Nf6 {[%clk 0:02:22]} 16. Qb5 {[%clk 0:02:02]}  Rc8 {[%clk 0:02:17]} 17. Rd3 {[%clk 0:01:53]}  Nc6 {[%clk 0:02:12]} 18. Nxc6 {[%clk 0:01:51]}  Qxc6+ {[%clk 0:02:10]} 19. Qxc6 {[%clk 0:01:50]}  Rxc6 {[%clk 0:02:10]} 20. Rad1 {[%clk 0:01:47]}  Kf8 {[%clk 0:02:05]} 21. b3 {[%clk 0:01:35]}  Ne8 {[%clk 0:01:56]} 22. Rd7 {[%clk 0:01:32]}  f6 {[%clk 0:01:54]} 23. Rb7 {[%clk 0:01:27]}  e5 {[%clk 0:01:51]} 24. Nd5 {[%clk 0:01:02]}  Bd8 {[%clk 0:01:39]} 25. Bc1 {[%clk 0:00:54]}  Bb6 {[%clk 0:01:36]} 26. Ne3 {[%clk 0:00:48]}  Nd6 {[%clk 0:01:34]} 27. Rd7 {[%clk 0:00:48]}  Nf7 {[%clk 0:01:30]} 28. Rb7 {[%clk 0:00:39]}  Rc7 {[%clk 0:01:18]} 29. Rxc7 {[%clk 0:00:37]}  Bxc7 {[%clk 0:01:19]} 30. Rd7 {[%clk 0:00:37]}  Bb6 {[%clk 0:01:18]} 31. Nd5 {[%clk 0:00:37]}  Rd8 {[%clk 0:01:15]} 32. Rxd8+ {[%clk 0:00:33]}  Nxd8 {[%clk 0:01:15]} 33. Be3 {[%clk 0:00:29]}  Nc6 {[%clk 0:01:13]} 34. Kf3 {[%clk 0:00:26]}  Kf7 {[%clk 0:01:12]} 35. g4 {[%clk 0:00:21]}  Ke6 {[%clk 0:01:12]} 36. h4 {[%clk 0:00:21]}  h5 {[%clk 0:01:05]} 37. gxh5 {[%clk 0:00:20]}  f5 {[%clk 0:01:06]} 38. h6 {[%clk 0:00:19]}  e4+ {[%clk 0:00:59]} 39. Ke2 {[%clk 0:00:19]}  gxh6 {[%clk 0:00:57]} 40. Bxh6 {[%clk 0:00:20]}  Nd4+ {[%clk 0:00:57]} 41. Ke3 {[%clk 0:00:17]}  Bd8 {[%clk 0:00:41]} 42. Nf4+ {[%clk 0:00:13]}  Ke5 {[%clk 0:00:38]} 43. Bg7+ {[%clk 0:00:11]}  Kd6 {[%clk 0:00:37]} 44. h5 {[%clk 0:00:09]}  Bg5 {[%clk 0:00:32]} 45. h6 {[%clk 0:00:07]}  Ne6 {[%clk 0:00:28]} 46. h7 {[%clk 0:00:06]}  Nxf4 {[%clk 0:00:29]} 47. h8=Q {[%clk 0:00:03]}  Ng6+ {[%clk 0:00:26]} 48. Ke2 {[%clk 0:00:02]}  Nxh8 {[%clk 0:00:26]} 49. Bxh8 {[%clk 0:00:02]}  Ke6 {[%clk 0:00:25]} 50. Bc3 {[%clk 0:00:02]}  Bf6 {[%clk 0:00:23]} 51. Bd2 {[%clk 0:00:02]}  Be5 {[%clk 0:00:20]} 52. f3 {[%clk 0:00:01]}  Bd4 {[%clk 0:00:20]} 53. fxe4 {[%clk 0:00:02]}  fxe4 {[%clk 0:00:21]} 54. b4 {[%clk 0:00:02]}  cxb4 {[%clk 0:00:18]} 55. Bxb4 {[%clk 0:00:03]}  Ke5 {[%clk 0:00:19]} 56. Bd2 {[%clk 0:00:03]}  Kd6 {[%clk 0:00:19]} 57. Be3 {[%clk 0:00:03]}  Kc5 {[%clk 0:00:19]} 58. Bxd4+ {[%clk 0:00:03]}  Kxd4 {[%clk 0:00:20]} 59. c5 {[%clk 0:00:03]}  Kxc5 {[%clk 0:00:20]} 60. Ke3 {[%clk 0:00:03]}  Kd5 {[%clk 0:00:21]} 61. a4 {[%clk 0:00:04]}  a5 {[%clk 0:00:19]} 62. Kd2 {[%clk 0:00:03]}  Kd4 {[%clk 0:00:20]} 63. Ke2 {[%clk 0:00:04]}  Kc4 {[%clk 0:00:19]} 64. Ke3 {[%clk 0:00:04]}  Kb4 {[%clk 0:00:20]} 65. Kxe4 {[%clk 0:00:04]}  Kxa4 {[%clk 0:00:20]} 66. Kd3 {[%clk 0:00:05]}  Kb3 {[%clk 0:00:21]} 0-1


[Site "https://www.chess.com"]

[Event "Titled Tuesday Blitz November 22 Late 2022"]
[White "Przybylski, Wojciech"]
[Black "Lewtak, Damian"]
[WhiteFideId "1117599"]
[BlackFideId "1141724"]
[WhiteElo "2221"]
[BlackElo "2329"]
[Result "1-0"]
[Round "09"]
[TimeControl "180+1"]
[Date "2022.11.23"]
[WhiteClock "0:00:05"]
[BlackClock "0:00:08"]

1. e4 {[%clk 0:02:55]}  a6 {[%clk 0:03:00]} 2. d4 {[%clk 0:02:53]}  e6 {[%clk 0:03:01]} 3. Nf3 {[%clk 0:02:52]}  b6 {[%clk 0:03:01]} 4. Nc3 {[%clk 0:02:50]}  Bb7 {[%clk 0:03:01]} 5. a4 {[%clk 0:02:49]}  Ne7 {[%clk 0:03:02]} 6. Bd3 {[%clk 0:02:49]}  g6 {[%clk 0:03:02]} 7. O-O {[%clk 0:02:49]}  Bg7 {[%clk 0:03:02]} 8. Bg5 {[%clk 0:02:47]}  d6 {[%clk 0:03:02]} 9. Qd2 {[%clk 0:02:47]}  h6 {[%clk 0:03:02]} 10. Be3 {[%clk 0:02:47]}  Nd7 {[%clk 0:03:02]} 11. h3 {[%clk 0:02:46]}  g5 {[%clk 0:03:02]} 12. Rae1 {[%clk 0:02:45]}  e5 {[%clk 0:03:02]} 13. d5 {[%clk 0:02:42]}  Ng6 {[%clk 0:03:01]} 14. g3 {[%clk 0:02:40]}  Nf6 {[%clk 0:02:56]} 15. Qd1 {[%clk 0:02:34]}  Bc8 {[%clk 0:02:56]} 16. Kh2 {[%clk 0:02:32]}  Bd7 {[%clk 0:02:56]} 17. Ng1 {[%clk 0:02:30]}  Qc8 {[%clk 0:02:57]} 18. Be2 {[%clk 0:02:26]}  g4 {[%clk 0:02:54]} 19. h4 {[%clk 0:02:25]}  Rb8 {[%clk 0:02:42]} 20. b4 {[%clk 0:02:19]}  b5 {[%clk 0:02:42]} 21. a5 {[%clk 0:02:19]}  c6 {[%clk 0:02:41]} 22. dxc6 {[%clk 0:01:50]}  Qxc6 {[%clk 0:02:42]} 23. Nd5 {[%clk 0:01:48]}  Nxd5 {[%clk 0:02:39]} 24. exd5 {[%clk 0:01:48]}  Qc8 {[%clk 0:02:31]} 25. f3 {[%clk 0:01:38]}  h5 {[%clk 0:02:30]} 26. Bd3 {[%clk 0:01:28]}  O-O {[%clk 0:02:28]} 27. Bg5 {[%clk 0:01:23]}  f5 {[%clk 0:02:21]} 28. fxg4 {[%clk 0:01:10]}  hxg4 {[%clk 0:02:21]} 29. h5 {[%clk 0:01:10]}  Nh8 {[%clk 0:02:13]} 30. Be7 {[%clk 0:01:06]}  Re8 {[%clk 0:02:12]} 31. Bxd6 {[%clk 0:01:05]}  Rb7 {[%clk 0:02:13]} 32. Qd2 {[%clk 0:00:55]}  Nf7 {[%clk 0:02:12]} 33. Bc5 {[%clk 0:00:53]}  e4 {[%clk 0:02:03]} 34. Be2 {[%clk 0:00:49]}  Qd8 {[%clk 0:02:02]} 35. Be3 {[%clk 0:00:37]}  Ne5 {[%clk 0:01:55]} 36. d6 {[%clk 0:00:36]}  Kh7 {[%clk 0:01:48]} 37. Bf4 {[%clk 0:00:18]}  Be6 {[%clk 0:01:34]} 38. h6 {[%clk 0:00:16]}  Bh8 {[%clk 0:01:31]} 39. Rd1 {[%clk 0:00:11]}  Rd7 {[%clk 0:01:27]} 40. Rf2 {[%clk 0:00:10]}  Qf6 {[%clk 0:01:21]} 41. Kg2 {[%clk 0:00:10]}  Qg6 {[%clk 0:01:20]} 42. Kf1 {[%clk 0:00:10]}  Nf3 {[%clk 0:01:16]} 43. Bxf3 {[%clk 0:00:08]}  gxf3 {[%clk 0:01:17]} 44. Nh3 {[%clk 0:00:06]}  Bf6 {[%clk 0:01:14]} 45. Bg5 {[%clk 0:00:03]}  Bc4+ {[%clk 0:01:03]} 46. Kg1 {[%clk 0:00:03]}  Be5 {[%clk 0:00:51]} 47. Bf4 {[%clk 0:00:03]}  Rxd6 {[%clk 0:00:36]} 48. Ng5+ {[%clk 0:00:02]}  Qxg5 {[%clk 0:00:28]} 49. Bxg5 {[%clk 0:00:02]}  Rxd2 {[%clk 0:00:27]} 50. Rfxd2 {[%clk 0:00:02]}  Be6 {[%clk 0:00:23]} 51. Rd7+ {[%clk 0:00:01]}  Bxd7 {[%clk 0:00:22]} 52. Rxd7+ {[%clk 0:00:02]}  Kg6 {[%clk 0:00:22]} 53. Be3 {[%clk 0:00:01]}  Kh5 {[%clk 0:00:14]} 54. h7 {[%clk 0:00:01]}  Rh8 {[%clk 0:00:12]} 55. Rd5 {[%clk 0:00:01]}  Bf6 {[%clk 0:00:12]} 56. Rxf5+ {[%clk 0:00:01]}  Kg6 {[%clk 0:00:12]} 57. Rf4 {[%clk 0:00:02]}  Re8 {[%clk 0:00:09]} 58. Rxf6+ {[%clk 0:00:01]}  Kxh7 {[%clk 0:00:07]} 59. Bd4 {[%clk 0:00:02]}  Rd8 {[%clk 0:00:06]} 60. Rf7+ {[%clk 0:00:02]}  Kg6 {[%clk 0:00:06]} 61. Rf6+ {[%clk 0:00:02]}  Kg5 {[%clk 0:00:07]} 62. Be5 {[%clk 0:00:02]}  Rd1+ {[%clk 0:00:06]} 63. Kf2 {[%clk 0:00:03]}  Rd2+ {[%clk 0:00:06]} 64. Ke1 {[%clk 0:00:03]}  Re2+ {[%clk 0:00:06]} 65. Kf1 {[%clk 0:00:04]}  Kg4 {[%clk 0:00:06]} 66. Rf4+ {[%clk 0:00:04]}  Kg5 {[%clk 0:00:06]} 67. Rf8 {[%clk 0:00:04]}  Kg4 {[%clk 0:00:06]} 68. Rf4+ {[%clk 0:00:03]}  Kg5 {[%clk 0:00:06]} 69. Rf7 {[%clk 0:00:04]}  Rxc2 {[%clk 0:00:07]} 70. Bf4+ {[%clk 0:00:02]}  Kg6 {[%clk 0:00:07]} 71. Re7 {[%clk 0:00:03]}  Kf5 {[%clk 0:00:05]} 72. Re5+ {[%clk 0:00:03]}  Kg4 {[%clk 0:00:05]} 73. Rxe4 {[%clk 0:00:03]}  Kh3 {[%clk 0:00:03]} 74. Re3 {[%clk 0:00:03]}  Kg4 {[%clk 0:00:03]} 75. Re4 {[%clk 0:00:03]}  f2 {[%clk 0:00:03]} 76. Re2 {[%clk 0:00:03]}  Rc4 {[%clk 0:00:03]} 77. Kxf2 {[%clk 0:00:03]}  Rxb4 {[%clk 0:00:04]} 78. Rd2 {[%clk 0:00:03]}  Ra4 {[%clk 0:00:04]} 79. Bc7 {[%clk 0:00:03]}  b4 {[%clk 0:00:04]} 80. Rd4+ {[%clk 0:00:03]}  Kf5 {[%clk 0:00:04]} 81. Rc4 {[%clk 0:00:03]}  Ra2+ {[%clk 0:00:05]} 82. Kf3 {[%clk 0:00:03]}  b3 {[%clk 0:00:05]} 83. Rb4 {[%clk 0:00:03]}  b2 {[%clk 0:00:06]} 84. g4+ {[%clk 0:00:03]}  Ke6 {[%clk 0:00:06]} 85. Bf4 {[%clk 0:00:03]}  Kd5 {[%clk 0:00:06]} 86. Be3 {[%clk 0:00:04]}  Ke6 {[%clk 0:00:05]} 87. g5 {[%clk 0:00:04]}  Kf5 {[%clk 0:00:06]} 88. Rb6 {[%clk 0:00:04]}  Rxa5 {[%clk 0:00:05]} 89. Rxb2 {[%clk 0:00:04]}  Ra3 {[%clk 0:00:06]} 90. Rb6 {[%clk 0:00:04]}  a5 {[%clk 0:00:06]} 91. Rf6+ {[%clk 0:00:04]}  Ke5 {[%clk 0:00:07]} 92. Rf8 {[%clk 0:00:04]}  a4 {[%clk 0:00:07]} 93. g6 {[%clk 0:00:05]}  Ra1 {[%clk 0:00:08]} 94. g7 {[%clk 0:00:05]} 1-0


[Site "https://www.chess.com"]

[Event "Titled Tuesday Blitz November 22 Late 2022"]
[White "Remolar Gallen, Jose"]
[Black "Torres Dominguez, David"]
[WhiteFideId "2215187"]
[BlackFideId "2220857"]
[WhiteElo "2252"]
[BlackElo "2037"]
[Result "0-1"]
[Round "09"]
[TimeControl "180+1"]
[Date "2022.11.23"]
[WhiteClock "0:00:47"]
[BlackClock "0:00:31"]

1. e4 {[%clk 0:03:00]}  Nc6 {[%clk 0:02:59]} 2. d4 {[%clk 0:02:58]}  e5 {[%clk 0:02:58]} 3. d5 {[%clk 0:02:58]}  Nce7 {[%clk 0:02:58]} 4. c4 {[%clk 0:02:57]}  Ng6 {[%clk 0:02:59]} 5. Nc3 {[%clk 0:02:56]}  Bc5 {[%clk 0:02:59]} 6. Nf3 {[%clk 0:02:54]}  d6 {[%clk 0:02:56]} 7. Be2 {[%clk 0:02:50]}  a6 {[%clk 0:02:56]} 8. O-O {[%clk 0:02:46]}  N8e7 {[%clk 0:02:56]} 9. a3 {[%clk 0:02:45]}  O-O {[%clk 0:02:55]} 10. b4 {[%clk 0:02:45]}  Ba7 {[%clk 0:02:54]} 11. Bg5 {[%clk 0:02:39]}  f6 {[%clk 0:02:43]} 12. Bd2 {[%clk 0:02:38]}  f5 {[%clk 0:02:43]} 13. Bg5 {[%clk 0:02:23]}  Qe8 {[%clk 0:02:37]} 14. exf5 {[%clk 0:02:19]}  Nxf5 {[%clk 0:02:34]} 15. Bd3 {[%clk 0:02:15]}  h6 {[%clk 0:02:27]} 16. Bc1 {[%clk 0:02:15]}  Nd4 {[%clk 0:02:23]} 17. Nd2 {[%clk 0:01:43]}  Nf4 {[%clk 0:02:21]} 18. Nde4 {[%clk 0:01:36]}  Qg6 {[%clk 0:02:05]} 19. Bxf4 {[%clk 0:01:35]}  Rxf4 {[%clk 0:01:57]} 20. c5 {[%clk 0:01:34]}  Bf5 {[%clk 0:01:33]} 21. f3 {[%clk 0:01:13]}  Bxe4 {[%clk 0:01:20]} 22. Nxe4 {[%clk 0:01:11]}  Qh5 {[%clk 0:01:10]} 23. g3 {[%clk 0:01:02]}  Rff8 {[%clk 0:01:08]} 24. f4 {[%clk 0:00:58]}  Qxd1 {[%clk 0:01:03]} 25. Raxd1 {[%clk 0:00:58]}  exf4 {[%clk 0:01:02]} 26. gxf4 {[%clk 0:00:58]}  dxc5 {[%clk 0:00:58]} 27. bxc5 {[%clk 0:00:58]}  Nf5 {[%clk 0:00:56]} 28. Bc4 {[%clk 0:00:56]}  Ne3 {[%clk 0:00:56]} 29. Rc1 {[%clk 0:00:54]}  Nxf1 {[%clk 0:00:56]} 30. Kxf1 {[%clk 0:00:54]}  Rxf4+ {[%clk 0:00:54]} 31. Nf2 {[%clk 0:00:54]}  Raf8 {[%clk 0:00:49]} 32. d6+ {[%clk 0:00:54]}  Kh8 {[%clk 0:00:49]} 33. Rc2 {[%clk 0:00:51]}  cxd6 {[%clk 0:00:49]} 34. Kg2 {[%clk 0:00:47]}  Rxf2+ {[%clk 0:00:48]} 35. Rxf2 {[%clk 0:00:47]}  Rxf2+ {[%clk 0:00:48]} 36. Kxf2 {[%clk 0:00:47]}  Bxc5+ {[%clk 0:00:48]} 37. Kf3 {[%clk 0:00:47]}  Bxa3 {[%clk 0:00:48]} 38. Bd5 {[%clk 0:00:47]}  b6 {[%clk 0:00:48]} 39. Ke2 {[%clk 0:00:47]}  Bc5 {[%clk 0:00:47]} 40. Kd3 {[%clk 0:00:48]}  g6 {[%clk 0:00:47]} 41. Be4 {[%clk 0:00:48]}  Kg7 {[%clk 0:00:47]} 42. Kc4 {[%clk 0:00:48]}  Kf6 {[%clk 0:00:47]} 43. Kd5 {[%clk 0:00:49]}  h5 {[%clk 0:00:42]} 44. Bd3 {[%clk 0:00:50]}  a5 {[%clk 0:00:39]} 45. Bb5 {[%clk 0:00:50]}  Kf5 {[%clk 0:00:38]} 46. Bd3+ {[%clk 0:00:48]}  Kf6 {[%clk 0:00:36]} 47. h3 {[%clk 0:00:47]}  g5 {[%clk 0:00:36]} 48. Ke4 {[%clk 0:00:46]}  a4 {[%clk 0:00:32]} 49. Bb5 {[%clk 0:00:46]}  a3 {[%clk 0:00:32]} 50. Kd3 {[%clk 0:00:47]}  a2 {[%clk 0:00:31]} 0-1


[Site "https://www.chess.com"]